fUST/lending_fUST_20250212
["ID","MTS","AMOUNT","RATE_DAILY","PERIOD"]
[352813802,1739341842363,-500.0,0.00013645,2]
[352813803,1739341842372,-500.0,0.00013645,2]
[352813804,1739341842385,-501.8015462,0.00013645,2]
[352813806,1739341842395,-500.0,0.00013645,2]
[352813808,1739341842404,-346.59434901,0.00013645,2]
[352813810,1739341842414,-500.0,0.00013645,2]
[352813811,1739341842423,-500.0,0.00013645,2]
[352813812,1739341842432,-500.0,0.00013645,2]
[352813813,1739341842441,-500.0,0.00013645,2]
[352813814,1739341842451,-500.0,0.00013645,2]
[352813815,1739341842460,-500.0,0.00013645,2]
[352813816,1739341842469,-500.0,0.00013645,2]
[352813817,1739341842478,-501.89238646,0.00013645,2]
[352813818,1739341842487,-500.0,0.00013645,2]
[352813819,1739341842496,-502.73792129,0.00013645,2]
[352813820,1739341842506,-427.41852694,0.00013645,2]
[352813821,1739341842515,-500.0,0.00013645,2]
[352813822,1739341842524,-500.0,0.00013645,2]
[352813823,1739341842534,-500.0,0.00013645,2]
[352813824,1739341842543,-500.0,0.00013645,2]
[352813825,1739341842552,-500.0,0.00013645,2]
[352813826,1739341842561,-500.0,0.00013645,2]
[352813827,1739341842570,-500.0,0.00013645,2]
[352813828,1739341842580,-501.23111099,0.00013645,2]
[352813829,1739341842590,-500.0,0.00013645,2]
[352813830,1739341842599,-500.0,0.00013645,2]
[352813831,1739341842609,-500.0,0.00013645,2]
[352813832,1739341842618,-500.96815387,0.00013645,2]
[352813833,1739341842631,-500.0,0.00013645,2]
[352813834,1739341842640,-500.0,0.00013645,2]
[352813835,1739341842649,-500.0,0.00013645,2]
[352813836,1739341842658,-500.0,0.00013645,2]
[352813837,1739341842668,-612.93836501,0.00013645,2]
[352813838,1739341842677,-311.96996259,0.00013645,2]
[352813839,1739341842687,-500.0,0.00013645,2]
[352813840,1739341842696,-221.25258393,0.00013645,2]
[352813841,1739341842705,-500.0,0.00013645,2]
[352813842,1739341842714,-500.81014347,0.00013645,2]
[352813843,1739341842723,-500.0,0.00013645,2]
[352813844,1739341842732,-500.0,0.00013645,2]
[352813845,1739341842742,-500.0,0.00013645,2]
[352813846,1739341842751,-501.54846624,0.00013645,2]
[352813847,1739341842760,-502.28224242,0.00013645,2]
[352813848,1739341842769,-500.0,0.00013645,2]
[352813849,1739341842778,-500.0,0.00013645,2]
[352813850,1739341842787,-500.0,0.00013645,2]
[352813851,1739341842796,-500.0,0.00013645,2]
[352813852,1739341842806,-501.78035983,0.00013645,2]
[352813853,1739341842815,-338.53199913,0.00013645,2]
[352813854,1739341842824,-500.0,0.00013645,2]
[352813855,1739341842834,-500.0,0.00013645,2]
[352813856,1739341842844,-192.81024183,0.00013645,2]
[352813857,1739341842854,-509.25054958,0.00013645,2]
[352813858,1739341842863,-500.0,0.00013646,2]
[352813860,1739341842872,-539.51666997,0.00013647,2]
[352813861,1739341842884,-512.76498654,0.00013647,2]
[352813863,1739341842894,-500.0,0.00013647,2]
[352813865,1739341842904,-38046.20232325,0.00013682,2]
[352813866,1739341842914,-500.0,0.00013698,2]
[352813867,1739341842923,-500.0,0.00013698,2]
[352813868,1739341842932,-1000.0,0.00013698,2]
[352813869,1739341842941,-1000.0,0.00013698,2]
[352813870,1739341842951,-775.367403,0.00013699,2]
[352813871,1739341842960,-365.597717,0.00013699,2]
[352813872,1739341842969,-500.0,0.00013699,2]
[352813873,1739341842979,-500.0,0.00013699,2]
[352813874,1739341842989,-500.0,0.00013699,2]
[352813875,1739341843000,-500.0,0.00013699,2]
[352813876,1739341843009,-335.60702229,0.00013699,2]
[352813877,1739341843019,-500.0,0.00013699,2]
[352813878,1739341843028,-500.0,0.00013699,2]
[352813879,1739341843038,-500.0,0.00013699,2]
[352813880,1739341843047,-500.0,0.00013699,2]
[352813881,1739341843057,-611.30795731,0.00013699,2]
[352813882,1739341843066,-500.0,0.00013699,2]
[352813883,1739341843076,-500.0,0.00013699,2]
[352813884,1739341843085,-500.0,0.00013699,2]
[352813885,1739341843095,-500.0,0.00013699,2]
[352813886,1739341843104,-500.0,0.00013699,2]
[352813887,1739341843114,-500.0,0.00013699,2]
[352813888,1739341843123,-500.0,0.00013699,2]
[352813889,1739341843136,-500.0,0.00013699,2]
[352813890,1739341843145,-500.0,0.00013699,2]
[352813891,1739341843154,-500.0,0.00013699,2]
[352813892,1739341843164,-500.0,0.00013699,2]
[352813893,1739341843173,-500.0,0.00013699,2]
[352813894,1739341843186,-500.0,0.00013699,2]
[352813895,1739341843195,-160.18,0.000137,2]
[352813896,1739341843206,-160.18,0.000137,2]
[352813897,1739341843215,-160.18,0.000137,2]
[352813898,1739341843227,-160.18,0.000137,2]
[352813899,1739341843237,-160.18,0.000137,2]
[352813900,1739341843248,-160.18,0.000137,2]
[352813901,1739341843260,-160.18,0.000137,2]
[352813902,1739341843270,-160.18,0.000137,2]
[352813903,1739341843280,-160.18,0.000137,2]
[352813904,1739341843290,-270.71246157,0.00013751,2]
[352813905,1739341843299,-883.7,0.0001378,2]
[352813906,1739341843308,-500.0,0.0001378,2]
[352813907,1739341843318,-500.0,0.0001378,2]
[352813908,1739341843328,-500.0,0.0001378,2]
[352813909,1739341843338,-500.0,0.0001378,2]
[352813910,1739341843348,-500.0,0.0001378,2]
[352813911,1739341843357,-500.0,0.00013781,2]
[352813912,1739341843367,-500.0,0.00013781,2]
[352813913,1739341843379,-392.27044691,0.00013781,2]
[352813914,1739341843388,-500.0,0.00013781,2]
[352813915,1739341843398,-500.0,0.00013781,2]
[352813916,1739341843407,-618.61533597,0.00013781,2]
[352813917,1739341843417,-505.34928355,0.00013781,2]
[352813918,1739341843427,-500.0,0.00013781,2]
[352813919,1739341843436,-504.607933,0.00013781,2]
[352813920,1739341843447,-500.0,0.00013781,2]
[352813921,1739341843457,-522.7426382,0.00013781,2]
[352813922,1739341843466,-500.0,0.00013781,2]
[352813923,1739341843475,-500.0,0.00013781,2]
[352813924,1739341843485,-917.88,0.00013781,2]
[352813925,1739341843495,-500.0,0.00013781,2]
[352813926,1739341843504,-500.0,0.00013781,2]
[352813927,1739341843514,-500.0,0.00013781,2]
[352813928,1739341843523,-505.87092413,0.00013781,2]
[352813929,1739341843532,-500.0,0.00013781,2]
[352813930,1739341843542,-500.0,0.00013781,2]
[352813931,1739341843551,-500.0,0.00013781,2]
[352813932,1739341843561,-500.0,0.00013781,2]
[352813933,1739341843571,-378.3472983,0.00013781,2]
[352813934,1739341843581,-1192.0,0.00013781,2]
[352813935,1739341843592,-500.0,0.00013781,2]
[352813936,1739341843601,-500.0,0.00013781,2]
[352813938,1739341843611,-3980.97,0.00013781,2]
[352813939,1739341843620,-500.0,0.00013781,2]
[352813940,1739341843631,-1140.37,0.00013781,2]
[352813941,1739341843640,-500.0,0.00013781,2]
[352813942,1739341843650,-500.0,0.00013781,2]
[352813943,1739341843659,-500.0,0.00013781,2]
[352813944,1739341843668,-500.0,0.00013781,2]
[352813945,1739341843677,-500.0,0.00013781,2]
[352813946,1739341843687,-1082.63,0.00013781,2]
[352813947,1739341843696,-4844.46,0.00013781,2]
[352813948,1739341843706,-536.42,0.00013781,2]
[352813949,1739341843715,-500.0,0.00013781,2]
[352813950,1739341843724,-500.0,0.00013781,2]
[352813951,1739341843733,-765.02,0.00013781,2]
[352813952,1739341843742,-500.0,0.00013781,2]
[352813953,1739341843751,-500.0,0.00013781,2]
[352813954,1739341843760,-611.89,0.00013781,2]
[352813955,1739341843770,-789.25,0.00013781,2]
[352813956,1739341843779,-500.0,0.00013781,2]
[352813957,1739341843788,-10624.72,0.00013781,2]
[352813958,1739341843797,-500.0,0.00013781,2]
[352813959,1739341843806,-500.0,0.00013781,2]
[352813960,1739341843815,-500.0,0.00013781,2]
[352813961,1739341843825,-500.0,0.00013781,2]
[352813962,1739341843833,-500.0,0.00013781,2]
[352813963,1739341843842,-500.0,0.00013781,2]
[352813964,1739341843853,-500.0,0.00013781,2]
[352813965,1739341843863,-500.0,0.00013781,2]
[352813966,1739341843872,-500.0,0.00013781,2]
[352813967,1739341843883,-575.37063315,0.00013781,2]
[352813968,1739341843892,-533.44,0.00013781,2]
[352813969,1739341843901,-500.0,0.00013781,2]
[352813970,1739341843910,-500.0,0.00013781,2]
[352813971,1739341843919,-500.0,0.00013781,2]
[352813972,1739341843929,-500.0,0.00013781,2]
[352813973,1739341843938,-500.0,0.00013781,2]
[352813974,1739341843948,-523.67543609,0.00013781,2]
[352813975,1739341843957,-500.0,0.00013781,2]
[352813976,1739341843967,-3909.29,0.00013781,2]
[352813977,1739341843976,-500.0,0.00013782,2]
[352813978,1739341843985,-500.0,0.00013782,2]
[352813979,1739341843994,-500.0,0.00013782,2]
[352813980,1739341844003,-508.12984906,0.00013782,2]
[352813981,1739341844013,-454.33356337,0.00013782,2]
[352813982,1739341844023,-500.0,0.00013782,2]
[352813983,1739341844032,-500.0,0.00013782,2]
[352813984,1739341844041,-500.0,0.00013782,2]
[352813985,1739341844050,-500.0,0.00013782,2]
[352813986,1739341844060,-500.0,0.00013782,2]
[352813987,1739341844069,-502.17235221,0.00013782,2]
[352813988,1739341844078,-338.4561293,0.00013782,2]
[352813989,1739341844087,-555.84272419,0.00013782,2]
[352813990,1739341844096,-500.0,0.00013782,2]
[352813991,1739341844105,-607.150844,0.00013782,2]
[352813992,1739341844114,-500.0,0.00013782,2]
[352813993,1739341844125,-500.0,0.00013782,2]
[352813994,1739341844135,-500.0,0.00013782,2]
[352813995,1739341844144,-625.36247002,0.00013782,2]
[352813996,1739341844154,-361.23025921,0.00013782,2]
[352813997,1739341844242,-500.0,0.00013782,2]
[352813998,1739341844253,-501.22159536,0.00013782,2]
[352813999,1739341844263,-500.0,0.00013782,2]
[352814000,1739341844272,-500.0,0.00013782,2]
[352814001,1739341844282,-500.0,0.00013782,2]
[352814002,1739341844291,-500.0,0.00013782,2]
[352814003,1739341844300,-500.0,0.00013782,2]
[352814004,1739341844310,-500.0,0.00013782,2]
[352814005,1739341844319,-500.0,0.00013782,2]
[352814006,1739341844330,-500.0,0.00013782,2]
[352814007,1739341844340,-311.45476809,0.00013782,2]
[352814008,1739341844350,-500.0,0.00013782,2]
[352814009,1739341844360,-505.67076895,0.00013782,2]
[352814010,1739341844369,-500.0,0.00013782,2]
[352814011,1739341844379,-500.0,0.00013782,2]
[352814012,1739341844389,-500.0,0.00013782,2]
[352814013,1739341844398,-1000.0,0.00013782,2]
[352814014,1739341844407,-259.40022541,0.00013782,2]
[352814015,1739341844416,-500.0,0.00013782,2]
[352814016,1739341844426,-504.37975815,0.00013782,2]
[352814017,1739341844435,-500.0,0.00013784,2]
[352814018,1739341844444,-2000.0,0.000138,2]
[352814019,1739341844454,-2000.0,0.000138,3]
[352814020,1739341844464,-2000.0,0.000138,4]
[352814021,1739341844473,-2000.0,0.000138,5]
[352814022,1739341844482,-269.85430873,0.00013833,2]
[352814023,1739341844491,-500.85551591,0.00013833,2]
[352814024,1739341844500,-500.0,0.00013833,2]
[352814025,1739341844509,-500.0,0.00013833,2]
[352814026,1739341844519,-160.28392707,0.00013833,2]
[352814027,1739341844528,-267.7570678,0.00013833,2]
[352814028,1739341844537,-349.11851743,0.00013833,2]
[352814029,1739341844546,-500.0,0.00013833,2]
[352814030,1739341844555,-500.0,0.00013833,2]
[352814031,1739341844564,-152.03741708,0.00013833,2]
[352814032,1739341844574,-500.0,0.00013848,2]
[352814033,1739341844583,-710.54469321,0.00013906,2]
[352814034,1739341844591,-883.7,0.00013917,2]
[352814035,1739341844601,-500.0,0.00013917,2]
[352814036,1739341844611,-500.0,0.00013917,2]
[352814037,1739341844620,-500.0,0.00013917,2]
[352814038,1739341844631,-500.0,0.00013918,2]
[352814039,1739341844640,-500.0,0.00013918,2]
[352814040,1739341844649,-501.65998518,0.00013918,2]
[352814041,1739341844658,-500.0,0.00013918,2]
[352814042,1739341844667,-502.98,0.00013918,2]
[352814043,1739341844677,-500.0,0.00013918,2]
[352814044,1739341844688,-500.0,0.00013918,2]
[352814045,1739341844698,-167.92973331,0.00013918,2]
[352814046,1739341844707,-500.0,0.00013918,2]
[352814047,1739341844716,-917.88,0.00013918,2]
[352814048,1739341844725,-500.0,0.00013918,2]
[352814049,1739341844734,-500.0,0.00013918,2]
[352814050,1739341844746,-500.0,0.00013918,2]
[352814051,1739341844755,-500.0,0.00013918,2]
[352814052,1739341844764,-500.0,0.00013918,2]
[352814053,1739341844773,-1192.0,0.00013918,2]
[352814054,1739341844783,-500.0,0.00013918,2]
[352814055,1739341844792,-3980.97,0.00013918,2]
[352814056,1739341844801,-495.96016509,0.00013918,2]
[352814057,1739341844810,-1140.37,0.00013918,2]
[352814058,1739341844820,-500.0,0.00013918,2]
[352814059,1739341844829,-500.0,0.00013918,2]
[352814060,1739341844838,-500.0,0.00013918,2]
[352814061,1739341844848,-1082.63,0.00013918,2]
[352814062,1739341844857,-4844.46,0.00013918,2]
[352814063,1739341844867,-536.42,0.00013918,2]
[352814064,1739341844876,-500.0,0.00013918,2]
[352814065,1739341844886,-500.0,0.00013918,2]
[352814066,1739341844895,-765.02,0.00013918,2]
[352814067,1739341844905,-500.0,0.00013918,2]
[352814068,1739341844914,-611.89,0.00013918,2]
[352814069,1739341844923,-789.25,0.00013918,2]
[352814070,1739341844932,-500.0,0.00013918,2]
[352814071,1739341844942,-10624.72,0.00013918,2]
[352814072,1739341844951,-500.0,0.00013918,2]
[352814073,1739341844960,-500.0,0.00013918,2]
[352814074,1739341844969,-500.0,0.00013918,2]
[352814075,1739341844979,-500.0,0.00013918,2]
[352814076,1739341844988,-500.0,0.00013918,2]
[352814077,1739341844998,-500.0,0.00013918,2]
[352814078,1739341845007,-500.0,0.00013918,2]
[352814079,1739341845016,-533.44,0.00013918,2]
[352814080,1739341845026,-500.0,0.00013918,2]
[352814081,1739341845035,-500.0,0.00013918,2]
[352814082,1739341845044,-500.0,0.00013918,2]
[352814083,1739341845053,-500.0,0.00013918,2]
[352814084,1739341845062,-151.0,0.00013918,2]
[352814085,1739341845074,-500.0,0.00013918,2]
[352814086,1739341845083,-151.0,0.00013918,2]
[352814087,1739341845092,-3909.29,0.00013918,2]
[352814088,1739341845101,-500.0,0.00013919,2]
[352814089,1739341845110,-500.0,0.00013919,2]
[352814090,1739341845122,-500.0,0.00013919,2]
[352814091,1739341845131,-503.52852237,0.00013919,2]
[352814092,1739341845140,-347.53580468,0.00013919,2]
[352814093,1739341845149,-500.0,0.00013919,2]
[352814094,1739341845158,-500.0,0.00013919,2]
[352814095,1739341845169,-500.0,0.00013919,2]
[352814096,1739341845178,-502.53382021,0.00013919,2]
[352814097,1739341845191,-500.0,0.00013919,2]
[352814098,1739341845200,-500.0,0.00013919,2]
[352814099,1739341845209,-500.0,0.00013919,2]
[352814100,1739341845219,-500.0,0.00013919,2]
[352814101,1739341845228,-500.0,0.00013919,2]
[352814102,1739341845237,-500.0,0.00013919,2]
[352814103,1739341845246,-500.0,0.00013919,2]
[352814104,1739341845256,-500.0,0.00013919,2]
[352814105,1739341845266,-1000.0,0.00013919,2]
[352814106,1739341845275,-151.0,0.00013919,2]
[352814107,1739341845284,-500.0,0.00013919,2]
[352814108,1739341845293,-151.142476,0.00013919,2]
[352814109,1739341845303,-500.0,0.00013921,2]
[352814110,1739341845312,-270.71246157,0.00013922,2]
[352814111,1739341845321,-448.141,0.00013935,2]
[352814112,1739341845331,-500.0,0.00013999,7]
[352814113,1739341845341,-500.0,0.00013999,7]
[352814114,1739341845350,-500.0,0.00013999,7]
[352814115,1739341845360,-500.0,0.00013999,7]
[352814116,1739341845370,-500.0,0.00013999,7]
[352814117,1739341845380,-500.0,0.00013999,7]
[352814118,1739341845391,-500.0,0.00013999,7]
[352814119,1739341845401,-500.0,0.00013999,7]
[352814120,1739341845410,-500.0,0.00013999,7]
[352814121,1739341845420,-500.0,0.00013999,7]
[352814122,1739341845429,-500.0,0.00013999,7]
[352814123,1739341845438,-500.0,0.00013999,7]
[352814124,1739341845448,-500.0,0.00013999,7]
[352814125,1739341845457,-500.0,0.00013999,7]
[352814127,1739341845467,-500.0,0.00013999,7]
[352814128,1739341845476,-500.0,0.00013999,7]
[352814129,1739341845485,-500.0,0.00013999,7]
[352814130,1739341845494,-603.13,0.00013999,7]
[352814131,1739341845504,-500.0,0.00013999,7]
[352814132,1739341845513,-500.0,0.00013999,7]
[352814133,1739341845522,-500.0,0.00013999,7]
[352814134,1739341845531,-500.0,0.00013999,7]
[352814135,1739341845541,-500.0,0.00013999,7]
[352814136,1739341845550,-500.0,0.00013999,7]
[352814137,1739341845559,-500.0,0.00013999,7]
[352814138,1739341845568,-500.0,0.00013999,7]
[352814140,1739341845577,-500.0,0.00013999,7]
[352814142,1739341845588,-500.0,0.00013999,7]
[352814143,1739341845597,-500.0,0.00013999,7]
[352814144,1739341845607,-500.0,0.00013999,7]
[352814145,1739341845617,-500.0,0.00013999,7]
[352814147,1739341845627,-500.0,0.00013999,7]
[352814148,1739341845638,-500.0,0.00013999,7]
[352814149,1739341845647,-500.0,0.00013999,7]
[352814150,1739341845656,-500.0,0.00013999,7]
[352814151,1739341845666,-500.0,0.00013999,7]
[352814152,1739341845675,-500.0,0.00013999,7]
[352814153,1739341845684,-500.0,0.00013999,7]
[352814154,1739341845694,-500.0,0.00013999,7]
[352814155,1739341845704,-500.0,0.00013999,7]
[352814156,1739341845714,-500.0,0.00013999,7]
[352814157,1739341845724,-500.0,0.00013999,7]
[352814158,1739341845734,-500.0,0.00013999,7]
[352814159,1739341845744,-500.0,0.00013999,7]
[352814160,1739341845755,-500.0,0.00013999,7]
[352814161,1739341845764,-500.0,0.00013999,7]
[352814162,1739341845774,-500.0,0.00013999,7]
[352814163,1739341845784,-500.0,0.00013999,7]
[352814164,1739341845793,-500.0,0.00013999,7]
[352814165,1739341845802,-500.0,0.00013999,7]
[352814166,1739341845811,-500.0,0.00013999,7]
[352814167,1739341845821,-500.0,0.00013999,7]
[352814168,1739341845830,-500.0,0.00013999,7]
[352814169,1739341845840,-500.0,0.00013999,7]
[352814170,1739341845849,-500.0,0.00013999,7]
[352814171,1739341845859,-500.0,0.00013999,7]
[352814172,1739341845868,-151.0,0.00013999,2]
[352814173,1739341845878,-151.0,0.00013999,2]
[352814174,1739341845888,-151.0,0.00013999,2]
[352814175,1739341845898,-151.0,0.00013999,2]
[352814176,1739341845907,-151.0,0.00013999,2]
[352814177,1739341845917,-151.0,0.00013999,2]
[352814178,1739341845927,-151.0,0.00013999,2]
[352814179,1739341845936,-883.7,0.00014054,2]
[352814180,1739341845946,-500.0,0.00014054,2]
[352814181,1739341845955,-500.0,0.00014054,2]
[352814182,1739341845965,-269.89626253,0.00014055,2]
[352814183,1739341845975,-500.0,0.00014055,2]
[352814184,1739341845984,-500.0,0.00014055,2]
[352814185,1739341845994,-500.0,0.00014055,2]
[352814186,1739341846006,-500.0,0.00014055,2]
[352814187,1739341846015,-917.88,0.00014055,2]
[352814188,1739341846025,-398.23614346,0.00014055,2]
[352814189,1739341846037,-500.0,0.00014055,2]
[352814190,1739341846046,-500.0,0.00014055,2]
[352814191,1739341846056,-216.067364,0.00014055,2]
[352814192,1739341846066,-500.0,0.00014055,2]
[352814193,1739341846075,-500.0,0.00014055,2]
[352814194,1739341846085,-1192.0,0.00014055,2]
[352814195,1739341846095,-151.0,0.00014055,2]
[352814196,1739341846105,-500.0,0.00014055,2]
[352814197,1739341846115,-3980.97,0.00014055,2]
[352814198,1739341846126,-151.862795,0.00014055,2]
[352814199,1739341846138,-1140.37,0.00014055,2]
[352814200,1739341846149,-500.0,0.00014055,2]
[352814201,1739341846159,-1082.63,0.00014055,2]
[352814202,1739341846169,-4844.46,0.00014055,2]
[352814203,1739341846184,-536.42,0.00014055,2]
[352814204,1739341846193,-500.0,0.00014055,2]
[352814205,1739341846203,-500.0,0.00014055,2]
[352814206,1739341846212,-765.02,0.00014055,2]
[352814207,1739341846222,-500.0,0.00014055,2]
[352814208,1739341846231,-611.89,0.00014055,2]
[352814209,1739341846240,-789.25,0.00014055,2]
[352814210,1739341846251,-500.0,0.00014055,2]
[352814211,1739341846260,-10624.72,0.00014055,2]
[352814212,1739341846269,-500.0,0.00014055,2]
[352814213,1739341846278,-500.0,0.00014055,2]
[352814214,1739341846287,-500.0,0.00014055,2]
[352814215,1739341846296,-500.0,0.00014055,2]
[352814216,1739341846306,-500.0,0.00014055,2]
[352814217,1739341846394,-500.0,0.00014055,2]
[352814218,1739341846404,-500.0,0.00014055,2]
[352814219,1739341846414,-533.44,0.00014055,2]
[352814220,1739341846423,-500.0,0.00014055,2]
[352814221,1739341846433,-500.0,0.00014055,2]
[352814222,1739341846442,-500.0,0.00014055,2]
[352814223,1739341846452,-500.0,0.00014055,2]
[352814224,1739341846461,-500.0,0.00014055,2]
[352814225,1739341846471,-3909.29,0.00014055,2]
[352814226,1739341846480,-500.0,0.00014056,2]
[352814227,1739341846490,-539.6305174,0.00014056,2]
[352814228,1739341846501,-500.0,0.00014056,2]
[352814229,1739341846510,-506.52232214,0.00014056,2]
[352814230,1739341846520,-500.0,0.00014056,2]
[352814231,1739341846530,-212.07100562,0.00014056,2]
[352814232,1739341846540,-500.0,0.00014056,2]
[352814233,1739341846550,-500.0,0.00014056,2]
[352814234,1739341846559,-502.63645887,0.00014056,2]
[352814235,1739341846569,-500.0,0.00014056,2]
[352814236,1739341846578,-371.78900568,0.00014056,2]
[352814237,1739341846588,-500.0,0.00014056,2]
[352814238,1739341846597,-196.51823698,0.00014056,2]
[352814239,1739341846608,-270.71246157,0.00014093,2]
[352814240,1739341846617,-883.7,0.00014191,2]
[352814241,1739341846627,-500.0,0.00014191,2]
[352814242,1739341846638,-500.0,0.00014192,2]
[352814243,1739341846647,-500.0,0.00014192,2]
[352814244,1739341846657,-500.0,0.00014192,2]
[352814245,1739341846666,-500.0,0.00014192,2]
[352814246,1739341846675,-917.88,0.00014192,2]
[352814247,1739341846685,-158.093449,0.00014192,2]
[352814248,1739341846694,-152.024997,0.00014192,2]
[352814249,1739341846704,-500.0,0.00014192,2]
[352814250,1739341846714,-500.0,0.00014192,2]
[352814251,1739341846723,-500.0,0.00014192,2]
[352814252,1739341846732,-500.0,0.00014192,2]
[352814253,1739341846742,-1192.0,0.00014192,2]
[352814254,1739341846752,-500.0,0.00014192,2]
[352814255,1739341846762,-3980.97,0.00014192,2]
[352814256,1739341846773,-1140.37,0.00014192,2]
[352814257,1739341846785,-500.0,0.00014192,2]
[352814258,1739341846819,-1082.63,0.00014192,2]
[352814259,1739341846875,-4844.46,0.00014192,2]
[352814260,1739341846965,-536.42,0.00014192,2]
[352814261,1739341847084,-500.0,0.00014192,2]
[352814262,1739341847223,-500.0,0.00014192,2]
[352814263,1739341847323,-765.02,0.00014192,2]
[352814264,1739341847440,-500.0,0.00014192,2]
[352814265,1739341847502,-611.89,0.00014192,2]
[352814266,1739341847587,-789.25,0.00014192,2]
[352814267,1739341847700,-500.0,0.00014192,2]
[352814268,1739341847778,-10624.72,0.00014192,2]
[352814269,1739341847865,-500.0,0.00014192,2]
[352814270,1739341847910,-500.0,0.00014192,2]
[352814271,1739341847923,-500.0,0.00014192,2]
[352814272,1739341847934,-500.0,0.00014192,2]
[352814273,1739341847944,-500.0,0.00014192,2]
[352814274,1739341847953,-500.0,0.00014192,2]
[352814275,1739341847962,-500.0,0.00014192,2]
[352814276,1739341847971,-500.0,0.00014192,2]
[352814277,1739341847980,-500.0,0.00014192,2]
[352814278,1739341847990,-500.0,0.00014192,2]
[352814279,1739341847999,-500.0,0.00014192,2]
[352814280,1739341848008,-151.0,0.00014192,2]
[352814281,1739341848018,-500.0,0.00014192,2]
[352814282,1739341848028,-151.0,0.00014192,2]
[352814283,1739341848037,-3909.29,0.00014192,2]
[352814284,1739341848046,-500.0,0.00014193,2]
[352814285,1739341848056,-162.48117573,0.00014193,2]
[352814286,1739341848066,-500.0,0.00014193,2]
[352814287,1739341848075,-397.32602959,0.00014193,2]
[352814288,1739341848084,-500.0,0.00014193,2]
[352814289,1739341848094,-500.0,0.00014193,2]
[352814290,1739341848103,-500.0,0.00014193,2]
[352814291,1739341848112,-151.0,0.00014231,2]
[352814292,1739341848122,-151.0,0.00014231,2]
[352814293,1739341848131,-9869.22482394,0.00014291,2]
[352814294,1739341848141,-883.7,0.00014328,2]
[352814295,1739341848151,-500.0,0.00014328,2]
[352814296,1739341848161,-500.0,0.00014329,2]
[352814297,1739341848170,-500.0,0.00014329,2]
[352814298,1739341848180,-500.0,0.00014329,2]
[352814299,1739341848193,-500.0,0.00014329,2]
[352814300,1739341848202,-917.88,0.00014329,2]
[352814301,1739341848213,-500.0,0.00014329,2]
[352814302,1739341848222,-500.0,0.00014329,2]
[352814303,1739341848232,-500.0,0.00014329,2]
[352814304,1739341848241,-1192.0,0.00014329,2]
[352814305,1739341848251,-500.0,0.00014329,2]
[352814306,1739341848263,-3980.97,0.00014329,2]
[352814307,1739341848272,-1140.37,0.00014329,2]
[352814308,1739341848283,-500.0,0.00014329,2]
[352814309,1739341848293,-151.0,0.00014329,2]
[352814310,1739341848303,-1082.63,0.00014329,2]
[352814311,1739341848313,-151.0,0.00014329,2]
[352814312,1739341848323,-4844.46,0.00014329,2]